Cogmind - Beta 10.2 @@@ ROGUE MODE // 2021.09.25 @ 23:59:18 Player: Rathori Result: Destroyed by P-60 Hacker with Shock Rifle Performance ------------- Evolutions (0) 0 Regions Visited (3) 600 Robots Destroyed (23) 115 Value Destroyed (635) 635 Prototype IDs (6) 120 Alien Tech Used (0) 0 Bonus (360) 360 TOTAL SCORE: 1830 Bonus ------- Follower Combat Kills 60 Aligned with FarCom 300 Cogmind --------- Core Integrity 0/250 Matter 231/300 Energy 230/250 System Corruption 2% Temperature Cool (0) Movement Walking (150) Ox1 Location -10/Exiles Parts ------- > --- POWER (1) -------- Ion Engine > --- PROPULSION (2) --- Aluminum Leg Aluminum Leg > --- UTILITY (2) ------ Medium Storage Unit Signal Interpreter > --- WEAPON (2) ------- Rocket Launcher Field Lobotomy Kit > --- INVENTORY (8) ---- Aluminum Leg Improved Heat Sink Superbattery (1569) Targeting Computer Hardened Light Armor Plating Supersonic Drone Bay (1/1) Assault Rifle Ripper Peak State ------------ > --- POWER ------------ Ion Engine > --- PROPULSION ------- Aluminum Leg Aluminum Leg > --- UTILITY ---------- Signal Interpreter Supersonic Drone Bay > --- WEAPON ----------- Assault Rifle Field Lobotomy Kit > --- INVENTORY -------- Medium Storage Unit Hardened Light Armor Plating Rocket Launcher Ripper [Rating: 23] Favorites ----------- Power Ion Engine Engine Ion Engine Propulsion Aluminum Leg Leg Aluminum Leg Utility Signal Interpreter Device Improved Heat Sink Storage Medium Storage Unit Processor Signal Interpreter Weapon Assault Rifle Energy Gun EM Pulse Gun Ballistic Gun Assault Rifle Launcher Grenade Launcher Special Weapon Field Lobotomy Kit Build | -11 -10 -10 -10 ------- Run | Scr Mat Min Exi Slots Evolved . | . . . . Power . | . . . . Propulsion . | . . . . Utility . | . . . . Weapon . | . . . . Parts Attached 36 | . 23 7 6 Power 4 | . 2 2 . Engine 4 | . 2 2 . Core . | . . . . Reactor . | . . . . Propulsion 12 | . 8 4 . Treads . | . . . . Leg 12 | . 8 4 . Wheel . | . . . . Hover . | . . . . Flight . | . . . . Utility 9 | . 5 . 4 Device 3 | . 2 . 1 Storage 4 | . 1 . 3 Processor 2 | . 2 . . Hackware . | . . . . Protection . | . . . . Artifact . | . . . . Weapon 11 | . 8 1 2 Energy Gun 4 | . 3 1 . Energy Cannon . | . . . . Ballistic Gun 3 | . 3 . . Ballistic Cannon . | . . . . Launcher 3 | . 2 . 1 Special Weapon 1 | . . . 1 Impact Weapon . | . . . . Slashing Weapon . | . . . . Piercing Weapon . | . . . . Special Melee Weapon . | . . . . Unidentified Prototypes 4 | . 1 . 3 Parts Lost 4 | . 3 1 . Power 1 | . 1 . . Propulsion . | . . . . Utility . | . . . . Weapon 3 | . 2 1 . Highest Loss Streak 3 | . 3 1 . Average Slot Usage (%) 98 | . 98 98 100 Engine 13 | . 13 14 14 Leg 27 | . 27 28 28 Device 2 | . 5 . . Storage 14 | . 14 14 14 Processor 11 | . 8 14 14 Energy Gun 12 | . 13 13 8 Ballistic Gun 12 | . 11 14 14 Launcher 1 | . 2 . . Special Weapon 1 | . . . 6 Naked Turns . | . . . . Heaviest Build 23 | 12 19 18 23 Greatest Support 20 | 20 20 20 20 Greatest Overweight (x) 1 | . . . 1 Average Overweight (x) . | . . . . Largest Inventory Capacity 8 | . 8 8 8 Average Capacity 7 | . 6 8 7 Most Carried 8 | . 8 8 8 Average Carried 6 | . 6 7 7 Final Capacity 8 | 6 8 8 8 Final Carried 8 | 6 8 8 8 Class Distribution -------------------- 59% | Scavenger-Mutant 40% | Mutant Dominant Class ---------------- Mutant | -10/Materials Scavenger-Mutant | -10/Mines Scavenger-Mutant | -10/Exiles Resources | -11 -10 -10 -10 ----------- Run | Scr Mat Min Exi Matter Collected 719 | 196 302 221 . Remotely . | . . . . Salvage Created 828 | . 605 223 . Parts 48 | . 37 11 . Haulers Intercepted 1 | . 1 . . Recyclers Shooed 3 | . 2 1 . Parts Field Recycled . | . . . . Retrieved Matter . | . . . . Parts Self-Destructed . | . . . . Prevented . | . . . . Kills | -11 -10 -10 -10 ------- Run | Scr Mat Min Exi Combat Hostiles Destroyed 17 | . 13 4 . Guns 13 | . 10 3 . AOE 4 | . 3 1 . Classes Destroyed 6 | . 6 . . Worker 1 | . 1 . . Hauler 1 | . 1 . . Recycler 1 | . 1 . . Watcher 3 | . 3 . . Swarmer 3 | . 3 . . Grunt 14 | . 10 4 . Best Kill Streak 5 | . 5 2 . Combat Bots Only 4 | . 4 2 . Max Kills in Single Turn 3 | . 3 1 . Gunslinging . | . . . . Exploded 2 | . 2 1 . Melee . | . . . . Uniques/NPCs Destroyed . | . . . . Combat | -11 -10 -10 -10 -------- Run | Scr Mat Min Exi Damage Taken 1297 | . 684 475 138 Core 256 | . 82 146 28 Absorbed by Shields . | . . . . Core Remaining (%) 100 | 100 . . . Volleys Fired 103 | . 68 32 3 Largest 2 | . 2 2 2 Hottest 86 | . 86 76 20 Shots Fired 179 | . 124 49 6 Gun 171 | . 119 49 3 Cannon . | . . . . Launcher 5 | . 5 . . Special 3 | . . . 3 Kinetic 92 | . 58 31 3 Thermal 58 | . 52 6 . Explosive 5 | . 5 . . Electromagnetic 21 | . 9 12 . Robot Hit Streak 12 | . 12 11 3 Robot Miss Streak 3 | . 3 2 2 Penetration Max . | . . . . Secondary Targets . | . . . . Shots Hit Robots 119 | . 79 37 3 Core Hits 42 | . 31 11 . Critical Hits . | . . . . Critical Kills . | . . . . Critical Parts Destroyed . | . . . . Melee Attacks . | . . . . Impact . | . . . . Slashing . | . . . . Piercing . | . . . . Sneak Attacks . | . . . . Combat Hostiles . | . . . . Follow-up Attacks . | . . . . Damage Inflicted 1641 | . 1147 479 15 Guns 1311 | . 855 441 15 Cannons . | . . . . Explosions 330 | . 292 38 . Melee . | . . . . Ramming . | . . . . Kinetic 567 | . 294 258 15 Thermal 589 | . 484 105 . Explosive 292 | . 292 . . Electromagnetic 193 | . 77 116 . Impact . | . . . . Slashing . | . . . . Piercing . | . . . . Highest Corruption 1 | . . . 1 Average Corruption 1 | . . . 1 Corruption Purged . | . . . . Overload Shots . | . . . . Overflow Damage 9 | . 9 . . Projectiles . | . . . . Explosions 9 | . 9 . . Melee . | . . . . Knockbacks . | . . . . Impact . | . . . . Kinetic . | . . . . Secondary . | . . . . Self-Inflicted Damage 68 | . 12 56 . Shots 2 | . 1 1 . Rammed . | . . . . Targets Rammed . | . . . . Kicked . | . . . . Crushed . | . . . . Highest Temperature 156 | . 156 153 . Average Temperature 42 | . 26 67 . Received Heat Transfer 591 | . 354 237 . Siege Activations . | . . . . Robots Corrupted . | . . . . Combat Hostiles . | . . . . Parts Fried . | . . . . Impact Corruptions . | . . . . Robots Melted . | . . . . Combat Hostiles . | . . . . Parts Melted 5 | . 5 . . Heat Transferred 1470 | . 1322 148 . Parts Sabotaged . | . . . . Parts Stolen . | . . . . Parts Stripped . | . . . . Power Chain Reactions 1 | . . 1 . Missiles Intercepted . | . . . . Alert | -11 -10 -10 -10 ------- Run | Scr Mat Min Exi Peak Influence 210 | . 210 115 . Initial 9 | . . 9 . Average 57 | . 63 47 . Maximum Alert Level 1 | . 1 . . Low Security (%) 96 | . 94 100 . Level 1 3 | . 5 . . Level 2 . | . . . . Level 3 . | . . . . Level 4 . | . . . . Level 5 . | . . . . High Security . | . . . . Max Security . | . . . . Squads Dispatched 2 | . 2 . . Investigation 2 | . 2 . . Extermination . | . . . . Reinforcement . | . . . . Assault . | . . . . Garrison . | . . . . Intercept . | . . . . Construction Impeded . | . . . . Haulers Reinforced . | . . . . Stealth | -11 -10 -10 -10 --------- Run | Scr Mat Min Exi Distress Signals 2 | . 2 . . Communications Jammed . | . . . . Distress Signals . | . . . . Times Spotted 37 | . 22 7 8 Peak Tracking Total 11 | . 6 2 11 Tactical Retreats 2 | . 1 1 . Traps | -11 -10 -10 -10 ------- Run | Scr Mat Min Exi Traps Triggered 2 | . 2 . . Indirectly . | . . . . Trap Hack Attempts . | . . . . Triggered . | . . . . Disarmed . | . . . . Reprogrammed . | . . . . Reused . | . . . . Traps Extracted . | . . . . Installed . | . . . . Triggered . | . . . . Exploded 1 | . . . 1 Machines | -11 -10 -10 -10 ---------- Run | Scr Mat Min Exi Machines Disabled 2 | . 2 . . Max in Single Turn 1 | . 1 . . Machines Sabotaged . | . . . . Garrisons Compromised . | . . . . Overloaded Fab Kills . | . . . . Fab Network Shutdowns . | . . . . Hacking | -11 -10 -10 -10 --------- Run | Scr Mat Min Exi Machines Accessed 11 | . 10 1 . Terminals 8 | . 7 1 . Fabricators . | . . . . Repair Stations 1 | . 1 . . Recycling Units 2 | . 2 . . Scanalyzers . | . . . . Garrison Access . | . . . . Total Hacks 40 | . 37 3 . Successful 26 | . 26 . . Failed 14 | . 11 3 . Catastrophic . | . . . . Database Lockouts . | . . . . Manual 29 | . 28 . 1 Terminals 28 | . 25 3 . Fabricators . | . . . . Repair Stations 4 | . 4 . . Recycling Units 8 | . 8 . . Scanalyzers . | . . . . Garrison Access . | . . . . Terminal Hacks 4 | . 4 . . Prototype ID Bank 1 | . 1 . . Alert Level 1 | . 1 . . Unreport Threat 2 | . 2 . . Fabricator Hacks . | . . . . Repair Station Hacks 4 | . 4 . . Scan Component 2 | . 2 . . Repair 2 | . 2 . . Recycling Unit Hacks 2 | . 2 . . Report Inventory 2 | . 2 . . Scanalyzer . | . . . . Garrison Access Hacks . | . . . . Unauthorized Hacks 16 | . 16 . . Terminals 10 | . 10 . . Track 2 | . 2 . . Assimilate 1 | . 1 . . Botnet 6 | . 6 . . Operators 1 | . 1 . . Fabricators . | . . . . Repair Stations . | . . . . Recycling Units 6 | . 6 . . Reject 2 | . 2 . . Recyclers 2 | . 2 . . Mask 2 | . 2 . . Scanalyzers . | . . . . Garrison Access . | . . . . Data Cores Recovered . | . . . . Used . | . . . . Hacking Detections 10 | . 9 1 . Full Trace Events 1 | . . 1 . Feedback Events . | . . . . Feedback Blocked . | . . . . Robot Schematics Acquired . | . . . . Robots Built . | . . . . Matter . | . . . . Time . | . . . . Total Robot Build Rating . | . . . . Part Schematics Acquired . | . . . . Parts Built . | . . . . Matter . | . . . . Time . | . . . . Total Part Build Rating . | . . . . Parts Repaired 2 | . 2 . . Time 52 | . 52 . . Parts Recycled . | . . . . Recycled Matter . | . . . . Retrieved Matter . | . . . . Retrieved Components . | . . . . Parts Scanalyzed . | . . . . Part Schematics Acquired . | . . . . Parts Damaged . | . . . . Bothacking | -11 -10 -10 -10 ------------ Run | Scr Mat Min Exi Used RIF Installer . | . . . . Robots Hacked . | . . . . Non-combat . | . . . . Combat . | . . . . Robot Hacks Applied . | . . . . Relay Couplers Released . | . . . . Robots Rewired . | . . . . Allies Hacked . | . . . . Hacks Repelled . | . . . . Allies | -11 -10 -10 -10 -------- Run | Scr Mat Min Exi Total Allies 5 | . . 3 2 Largest Group 4 | . . 3 4 Highest-Rated Group 75 | . . 40 75 Highest-Rated Ally 35 | . . 16 35 Total Orders . | . . . . Ally Attacks 10 | . . 6 4 Total Damage 361 | . . 88 273 Kills 2 | . . 2 . Allies Corrupted . | . . . . Allies Melted . | . . . . Field Lobotomies 2 | . . . 2 Intel | -11 -10 -10 -10 ------- Run | Scr Mat Min Exi Robot Analysis Total . | . . . . Derelict Logs Recovered 1 | . . 1 . Drone Launches . | . . . . Drone Recoveries . | . . . . Exploration | -11 -10 -10 -10 ------------- Run | Scr Mat Min Exi Turns Passed 2647 | . 1259 899 489 Spaces Moved 1711 | 1 739 623 348 Core . | . . . . Treads . | . . . . Legs 1711 | 1 739 623 348 Wheels . | . . . . Hover . | . . . . Flight . | . . . . Fastest Speed 120 | 120 120 120 120 Average Speed 122 | 120 120 120 130 Slowest Speed 150 | 120 120 120 150 Overloaded Moves . | . . . . Propulsion Burnouts . | . . . . Robots Hopped . | . . . . Cave-ins Triggered . | . . . . Exploration Rate (%) 66 | 1 97 98 68 Regions Visited 3 Branch Regions 2 Pre-discovered Areas . | . . . . Known Exits Taken 2 | . 1 1 . Unknown Exits Taken 1 | 1 . . . Scrap Searched 1 | . . 1 . Spaces Dug . | . . . . Terrain Destroyed 56 | . 49 7 . Melee . | . . . . Projectile . | . . . . AOE 56 | . 49 7 . Terrain Rammed . | . . . . Walls Destroyed . | . . . . Machines Disabled . | . . . . Actions | -11 -10 -10 -10 --------- Run | Scr Mat Min Exi Total 2092 | . 992 728 372 Wait 198 | . 140 58 . Move 1708 | . 738 622 348 Hop . | . . . . Pick Up 22 | . 9 2 11 Fast Attach 7 | . 6 . 1 Attach 2 | . 1 1 . Detach 1 | . 1 . . Swap 27 | . 16 6 5 Drop 24 | . 13 7 4 Fire 103 | . 68 32 3 Melee . | . . . . Ram . | . . . . Kick . | . . . . Crush . | . . . . Escape Stasis . | . . . . Rewire . | . . . . Trap . | . . . . Miscellaneous . | . . . . Route ------- -11/Scrapyard -10/Materials (discovered 4 exits: *Mat x3 / *Min) -10/Mines (discovered 3 exits: *Mat x2 / *Exi) -10/Exiles (discovered 1 exit: *Min) History --------- Turn | Location | Event 1 | -11/Scrapyard | Discovered new exit (range 0) 1 | -11/Scrapyard | Entered Materials 289 | -10/Materials | Lost 3 parts (1p2w) 446 | -10/Materials | Discovered new exit (range 11) 704 | -10/Materials | Discovered new exit (range 8) 738 | -10/Materials | Identified exit to Materials 768 | -10/Materials | Build established: Mutant 808 | -10/Materials | Discovered new exit (range 14) 839 | -10/Materials | Identified exit to Mines 922 | -10/Materials | Repaired Aluminum Leg 950 | -10/Materials | Repaired Ion Engine 1021 | -10/Materials | Discovered exit to Materials (range 14) 1260 | -10/Materials | Entered Mines 1326 | -10/Mines | Core integrity fell below 50% 1412 | -10/Mines | Core integrity fell below 20% 1455 | -10/Mines | Discovered exit to Materials (range 14) 1478 | -10/Mines | Assisted by bots powering up and referring to "LRC-V3" 1563 | -10/Mines | Learned 8 Materials zone layouts 1568 | -10/Mines | Discovered exit to Materials (range 8) 1597 | -10/Mines | Build established: Scavenger-Mutant 1793 | -10/Mines | Received a Rocket Launcher from a helpful Derelict 2066 | -10/Mines | A weapon hastily lodged in a ceiling crevice suddenly fell to the ground 2147 | -10/Mines | Deemed a non-threat by the Exiles lab entrance 2147 | -10/Mines | Discovered new exit (range 5) 2150 | -10/Mines | Identified exit to Exiles 2159 | -10/Mines | Entered Exiles 2159 | -10/Exiles | Accompanied by 3 allies 2179 | -10/Exiles | Discovered new exit (range 15) 2194 | -10/Exiles | Identified exit to Mines 2219 | -10/Exiles | Met 8R-AWN 2235 | -10/Exiles | Met EX-HEX 2335 | -10/Exiles | Met EX-BIN 2359 | -10/Exiles | Aligned with FarCom system 2360 | -10/Exiles | Given EX-Vault access code 2411 | -10/Exiles | Opened EX-Vault 2419 | -10/Exiles | Found Prototype Storage 2420 | -10/Exiles | Identified Superbattery 2435 | -10/Exiles | Found Prototype Special Weapon 2435 | -10/Exiles | Identified Field Lobotomy Kit 2440 | -10/Exiles | Found Prototype Device 2441 | -10/Exiles | Identified Supersonic Drone Bay 2489 | -10/Exiles | Exiles lab attacked by MAIN.C 2626 | -10/Exiles | Assimilated G-34 Mercenary with FLK Orb 2633 | -10/Exiles | Assimilated P-60 Hacker with FLK Orb 2648 | -10/Exiles | Destroyed by P-60 Hacker with Shock Rifle Last Messages --------------- 02524_ EXILES: Lab perimeter alert, evacuate immediately. 02528_ EX-BIN: "Not cool, MAIN.C, I don't even have my SDF Cannon ready..." 02626_ G-34 Mercenary assimilated. 02628_ Mercenary 1b destroyed. 02633_ Machine disabled. 02633_ P-60 Hacker assimilated. 02634_ Hacker 1a suffers critical hit. 02636_ Hacker 1a fails to hack H-55 Commando. 02638_ Chain reaction triggered in Lgt. Angular Momentum Engine. 02638_ Destroyed Shock Rifle. 02638_ Destroyed Gravmag System. 02638_ Destroyed Shock Rifle. 02638_ Slug penetrates Hacker 1a. 02638_ Hacker 1a destroyed. 02640_ Mercenary 1a destroyed. 02640_ Trooper 1a destroyed. 02643_ Trooper 1b destroyed. 02643_ P-60 Hacker resets P-60 Hacker, system corruption cleaned. 02648_ Penetrated by Slug. Map ----- +----------------------------------------------------+ | ????????????????????" "?????????##" ########## | | ????????????????????# #????????##"" #????????? | | ???????????###????### ###?######"" #????????? | | ????????? """#####X# #"###""""""" ##???????? | | ????????? """""" " "" ##???#### | | ???????? "" """ " #####""" | | ???????? " " " " | | ???????? " | | ?????????# | | ??????????# | | ???????????# | | ????????????#" | | ????????????#""" """""" | | ???????????##" ######""" | | ???????????#"" ""##????#####""" | | ??????????##""" """##?????????##""" | | ??????????#""" """##???????????#"""" | | ??????????#"""t ""#???????????##"" | | ??????????#"" ########?#####"""" | | ??????????#""" ##aaa#;;; "" | | ??????????#"" [ !! | | ??????????##"" !%=%p h | | ???????????#"""" %=%|p p | | ???????????## [%=![ l h | | ????????????#" = = "" | | ????????????#"""" @%== "## ##""" " " " | | ????????????#"" ![%%!""#### ######""" "" | | ????????????#" ="[""##??# #????###"""" | | ????????????#""" """#??## ####????#### | | ????????????## ""##??#! "!#???????? | | ?????????????#"" """##???#" !#???????? | | ?????????????##""" ##????#" "#???????? | | ??????????????##"""" ##?????#!!""!"#???????? | | ???????????????### #??????########???????? | | ?????????????????##### ##?????????????????????? | | ?????????????????????## #??????????????????????? | | ??????????????????????# #??????????????????????? | | ??????????????????????# #??????????????????????? | | ??????????????????????# #??????????????????????? | | ??????????????????????# #??????????????????????? | | ??????????????????????# #??????????????????????? | | ??????????????????????# #??????????????????????? | | ??????????????????????# #??????????????????????? | | ??????????????????????# #??????????????????????? | | ??????????????????????# #??????????????????????? | | ??????????????????##### #######????????????????? | | ?????????????" """""" """""""#???????????????? | | ???????????"" "#???????????????? | | ?????????? " "???????????? | | ?????????? " " "??????????? | +----------------------------------------------------+ Best States ------------- Heat Dissipation 39 Energy Generation 10 Energy Capacity 250 Matter Stores 300 Matter Capacity 300 Sight Range 18 Terrain Scan Density 10 Evasion (%) 40 Item Schematics ----------------- None Robot Schematics ------------------ None Fabricated ------------ Nothing Alien Tech Used ----------------- None Achievements -------------- None Challenges ------------ None Game ------ Seed TargetDecoyMatter Manual? 0 Play Time 00:24:40 Cumulative 34.7 hours Start 2021.09.25 @ 23:35:43 End 2021.09.25 @ 23:59:18 Sessions 1 Manual Loads 0 Difficulty Rogue Special Mode None Game No. 29 Rogue 28 Adventurer 1 Explorer 0 Win Type - Total 0 Types 0/0/0/0/0/0/0/0/0 Lore% 36 Gallery% 36 Achievement% 31 Wizard Run 0 Options --------- ASCII 0 Keyboard 0 Movement Mouse Keybinds 0 Fullscreen 2 Font 24/Smallcaps Map View 76x50 Tactical HUD 1 Map Filters NONE Filters NONE Steam 1 RUN: 42da1cc3-5a76-442b-93b7-20c20cc4820f